bitfinex/quotes_SOLUSD_20260308
["timestamp","ask_amount","ask_price","bid_price","bid_amount"]
[1773012071945,0.5122726,82.028,81.988,0.52576625]
[1773012073756,0.5122726,82.047,81.991,0.52576625]
[1773012073948,0.5122726,82.039,81.991,0.52576625]
[1773012074859,12.70168079,82.039,81.994,0.52576625]
[1773012076065,0.5122726,82.029,81.997,0.52576625]
[1773012076440,0.5122726,82.036,81.997,0.52576625]
[1773012076635,1.59691253,82.047,82.002,0.52576625]
[1773012076849,0.5122726,82.057,82.01,0.52576625]
[1773012077055,12.18656843,82.058,82.01,0.52576625]
[1773012077056,0.5122726,82.049,82.01,0.52576625]
[1773012078066,0.5122726,82.049,82.013,0.52576625]
[1773012079162,0.5122726,82.064,82.013,0.52576625]
[1773012079346,0.5122726,82.059,82.013,0.52576625]
[1773012079541,0.5122726,82.049,82.013,0.52576625]
[1773012079948,0.5122726,82.038,82.014,12.19304021]
[1773012081842,0.5122726,82.038,82.014,12.71880646]
[1773012082044,0.5122726,82.038,82.015,0.52576625]
[1773012082246,4.56564528,82.05,82.015,0.52576625]
[1773012082559,12.69864049,82.059,82.015,0.52576625]
[1773012083076,0.5122726,82.058,82.015,0.52576625]
[1773012086362,4.56564528,82.05,82.018,0.52576625]
[1773012086551,0.5122726,82.049,82.018,0.52576625]
[1773012086742,0.5122726,82.039,82.018,0.52576625]
[1773012086947,0.5122726,82.039,82.016,42.67460006]
[1773012087365,0.5122726,82.039,82.016,43.20036631]
[1773012087565,0.5122726,82.039,82.017,0.52576625]
[1773012088473,0.5122726,82.038,82.002,0.52576625]
[1773012088672,0.5122726,82.019,82.0,12.19512195]
[1773012089171,0.5122726,82.019,81.992,12.19631183]
[1773012090266,0.5122726,82.019,81.993,0.52576625]
[1773012092676,0.5122726,82.019,81.994,12.72178059]
[1773012092980,0.5122726,82.019,81.995,0.53621337]
[1773012095467,0.5122726,82.019,81.996,12.19571686]
[1773012096680,4.56564528,82.04,81.981,12.1979483]
[1773012096681,4.56564528,82.01,81.981,12.1979483]
[1773012096878,0.49161612,82.009,81.982,0.53621337]
[1773012097582,0.49161612,82.009,81.983,12.19765073]
[1773012097769,0.49161612,82.009,81.984,0.53621337]
[1773012100988,0.49161612,82.009,81.986,0.53621337]
[1773012101370,12.68547069,82.009,81.986,0.53621337]
[1773012101571,0.49161612,82.008,81.986,0.53621337]
[1773012102189,0.49161612,81.999,81.953,3.69383402]
[1773012102489,0.49161612,81.999,81.954,0.28432314]
[1773012102892,0.49161612,81.999,81.953,3.69383402]
[1773012103184,0.49161612,81.997,81.977,12.19853243]
[1773012103362,0.49161612,81.997,81.98,12.39795359]
[1773012104490,0.49161612,81.997,81.98,0.2]
[1773012106176,0.49161612,81.995,81.98,0.2]
[1773012106487,1.27753002,82.019,81.98,0.2]
[1773012106488,0.49161612,82.009,81.982,0.53621337]
[1773012107490,0.49161612,82.007,81.983,12.19765073]
[1773012110693,0.49161612,82.005,81.98,0.2]
[1773012110891,0.49161612,81.999,81.981,12.1979483]
[1773012111487,0.49161612,81.999,81.98,0.2]
[1773012112098,0.49161612,81.999,81.98,12.39798089]
[1773012114570,12.19422969,82.006,81.98,0.2]
[1773012114571,0.49161612,81.997,81.98,0.2]
[1773012114987,0.49161612,81.997,81.98,0.73621337]
[1773012115193,0.49161612,81.997,81.98,0.2]
[1773012115985,0.49161612,81.997,81.981,12.1979483]
[1773012116183,0.49161612,81.997,81.981,12.73416167]
[1773012116398,12.68650025,82.002,81.981,12.73416167]
[1773012116796,0.49161612,82.002,81.981,12.73416167]
[1773012116996,0.49161612,82.002,81.982,0.53621337]
[1773012117185,0.49161612,82.009,81.982,0.53621337]
[1773012118812,0.49161612,82.007,81.983,12.7338641]
[1773012119103,0.49161612,82.007,81.984,0.53621337]
[1773012120377,0.49161612,82.041,81.99,0.53621337]
[1773012120612,4.56932792,82.04,81.99,0.53621337]
[1773012120905,0.49161612,82.029,81.99,0.53621337]
[1773012121105,0.49161612,82.027,81.992,0.53621337]
[1773012121896,0.49161612,82.034,81.992,0.53621337]
[1773012122096,0.49161612,82.034,81.993,0.53621337]
[1773012122990,0.50439689,82.049,81.996,0.53425589]
[1773012123198,0.50439689,82.049,82.0,0.53425589]
[1773012123785,0.50439689,82.048,82.0,0.53425589]
[1773012123988,0.50439689,82.019,81.994,12.19601434]
[1773012124199,0.50439689,82.019,81.982,12.19778344]
[1773012124400,0.50439689,82.009,81.982,12.19778344]
[1773012124608,0.50439689,82.039,81.987,0.53425589]
[1773012124988,1.02202402,82.048,82.0,0.53425589]
[1773012125199,1.52642091,82.048,82.0,0.53425589]
[1773012125408,0.50439689,82.047,82.0,0.53425589]
[1773012127118,0.48982581,82.046,82.003,0.51335311]
[1773012128601,1.02202402,82.048,82.003,0.51335311]
[1773012128786,1.02202402,82.048,82.008,4.82477569]
[1773012128985,1.02202402,82.048,82.001,103.65727247]
[1773012128986,1.02202402,82.048,82.012,0.51335311]
[1773012129187,1.02202402,82.048,82.015,0.51335311]
[1773012131310,1.02202402,82.048,82.018,0.51335311]
[1773012131889,0.48982581,82.047,82.018,0.51335311]
[1773012132093,0.48982581,82.046,82.016,12.19274287]
[1773012132392,0.48982581,82.039,81.998,0.51335311]
[1773012132809,0.48982581,82.039,82.002,12.70812871]
[1773012133109,0.48982581,82.039,82.003,0.51335311]
[1773012133304,0.48982581,82.039,81.985,0.28432314]
[1773012133305,0.48982581,82.039,82.005,0.51335311]
[1773012133513,0.48982581,82.046,82.006,0.51335311]
[1773012135107,1.02202402,82.048,82.006,0.51335311]
[1773012135411,1.02202402,82.048,82.013,0.51335311]
[1773012136798,0.48982581,82.062,82.013,0.51335311]
[1773012137514,0.48982581,82.062,82.016,0.51335311]
[1773012137887,12.18486882,82.069,82.02,0.51335311]
[1773012138087,0.48982581,82.068,82.02,0.51335311]
[1773012139412,12.18486882,82.069,82.017,0.28432314]
[1773012139413,0.48982581,82.049,82.017,0.79767625]
[1773012139716,0.48982581,82.049,82.018,42.67355946]
[1773012140004,0.48982581,82.049,82.018,43.18691257]
[1773012140205,0.48982581,82.049,81.997,64.67141431]
[1773012140206,0.48982581,82.039,82.007,12.19408099]
[1773012140388,0.48982581,82.029,82.007,12.19408099]
[1773012141911,0.48982581,82.029,82.004,0.51335311]
[1773012142214,0.48982581,82.036,82.004,0.51335311]
[1773012144212,0.48982581,82.036,82.006,0.51335311]
[1773012144512,0.48982581,82.048,82.007,0.51335311]
[1773012146194,0.48982581,82.048,82.008,42.67876303]
[1773012146412,0.48982581,82.048,82.009,0.51335311]
[1773012147297,0.48982581,82.059,82.012,0.51335311]
[1773012147525,0.48982581,82.058,82.012,0.51335311]
[1773012147816,0.48982581,82.058,82.019,0.51335311]
[1773012147989,0.48982581,82.066,82.02,0.51335311]
[1773012148403,0.48982581,82.066,82.023,0.51335311]
[1773012148601,0.48982581,82.108,82.03,0.51335311]
[1773012148815,0.48982581,82.079,82.031,0.51335311]
[1773012150605,0.48982581,82.077,82.037,0.51335311]
[1773012151924,0.48982581,82.085,82.039,0.51335311]
[1773012152502,0.48982581,82.083,82.04,42.66211603]
[1773012152702,0.47503456,82.069,82.04,12.18917601]
[1773012155220,0.47503456,82.075,82.032,0.48000391]
[1773012156117,0.47503456,82.085,82.039,0.48000391]
[1773012157223,0.47503456,82.083,82.042,0.48000391]
[1773012157717,0.47503456,82.083,82.04,42.66211603]
[1773012157928,0.47503456,82.069,82.031,12.19051334]
[1773012158312,42.63924759,82.084,82.021,12.1919996]
[1773012158313,0.47503456,82.059,82.021,12.1919996]
[1773012158514,0.47503456,82.059,82.021,42.67199862]
[1773012159621,0.47503456,82.057,82.015,4.17383793]
[1773012159922,0.47503456,82.057,82.012,42.67668146]
[1773012160125,0.47503456,82.057,82.013,0.48000391]
[1773012160925,0.47503456,82.057,82.014,0.48000391]
[1773012161224,0.47503456,82.077,82.014,0.48000391]
[1773012161431,0.47503456,82.069,82.014,0.48000391]
[1773012162133,0.47503456,82.067,82.017,0.48000391]
[1773012163316,0.47503456,82.065,82.019,0.48000391]
[1773012166128,0.47503456,82.065,82.021,0.48000391]
[1773012166511,0.47503456,82.065,82.022,0.48000391]
[1773012166920,12.18561123,82.064,82.02,42.67251889]
[1773012167211,0.47503456,82.063,82.021,0.48000391]
[1773012168126,0.47503456,82.063,82.022,0.48000391]
[1773012168333,0.47503456,82.063,82.025,0.48000391]
[1773012170133,0.47503456,82.062,82.025,0.48000391]
[1773012170329,0.47503456,82.062,82.028,0.48000391]
[1773012171529,3.5,82.077,82.028,0.48000391]
[1773012171714,12.18302617,82.082,82.028,0.48000391]
[1773012171910,12.18130656,82.093,82.03,0.28432314]
[1773012172227,12.18096387,82.096,82.054,0.48000391]
[1773012172426,12.18130656,82.093,82.055,0.48000391]
[1773012172820,12.18075425,82.097,82.055,0.48000391]
[1773012173220,12.18016869,82.101,82.055,0.48000391]
[1773012173532,0.47503456,82.095,82.055,0.48000391]
[1773012175135,0.47503456,82.095,82.058,0.48000391]
[1773012175334,0.47503456,82.102,82.058,0.48000391]
[1773012175538,0.47503456,82.104,82.061,0.48000391]
[1773012177227,0.47503456,82.104,82.063,0.28432314]
[1773012177534,0.47503456,82.104,82.064,0.48000391]
[1773012179911,0.47503456,82.104,82.067,0.48000391]
[1773012180513,0.2,82.11,82.068,0.48000391]
[1773012181231,0.2,82.11,82.066,0.28432314]
[1773012181232,12.17448471,82.139,82.081,0.48000391]
[1773012181930,12.17448471,82.139,82.084,0.48000391]
[1773012182539,0.29155184,82.129,82.084,0.48000391]
[1773012182722,0.29066659,82.137,82.085,4.82477569]
[1773012182925,0.29066659,82.137,82.09,0.48857332]
[1773012183938,0.2,82.14,82.095,0.48857332]
[1773012184156,1e-08,82.15,82.101,4.82477569]
[1773012184322,0.29023158,82.169,82.122,0.48857332]
[1773012184521,0.29023158,82.168,82.122,0.48857332]
[1773012185940,42.59513928,82.169,82.123,42.61899832]
[1773012185941,0.28937649,82.166,82.123,42.61899832]
[1773012186318,0.2889563,82.159,82.123,42.61899832]
[1773012186927,0.28854093,82.149,82.106,0.49813399]
[1773012187242,0.28854093,82.139,82.098,0.49813399]
[1773012187942,0.28813034,82.129,82.095,0.49813399]
[1773012188922,0.28772446,82.137,82.095,0.49813399]
[1773012190224,0.28772446,82.137,82.097,0.49813399]
[1773012190625,12.46255731,82.137,82.097,0.49813399]
[1773012190827,0.28692663,82.136,82.097,0.49813399]
[1773012191339,0.28692663,82.149,82.101,0.49813399]
[1773012191545,0.28692663,82.139,82.101,0.49813399]
[1773012192622,0.28692663,82.139,82.102,42.62989938]
[1773012192825,0.28614703,82.206,82.107,0.49813399]
[1773012193045,0.28614703,82.196,82.129,3.69383402]
[1773012193234,0.28614703,82.189,82.131,0.49813399]
[1773012193944,0.28576393,82.206,82.144,0.49813399]
[1773012194145,0.28576393,82.196,82.152,0.49813399]
[1773012194329,0.28576393,82.189,82.144,0.49813399]
[1773012194728,0.28576393,82.189,82.147,0.49813399]
[1773012195353,0.28538523,82.187,82.147,0.49813399]
[1773012196241,0.28432314,82.207,82.145,42.60758414]
[1773012196242,0.28501088,82.209,82.149,0.49813399]
[1773012196447,0.28501088,82.208,82.153,0.49813399]
[1773012197046,0.28464083,82.206,82.156,0.49813399]
[1773012197644,0.28464083,82.206,82.155,0.28432314]
[1773012197645,0.1,82.21,82.16,0.49813399]
[1773012197851,0.28427503,82.244,82.17,0.49813399]
[1773012198147,0.28427503,82.244,82.166,3.69383402]
[1773012198148,1e-08,82.241,82.205,0.51574081]
[1773012198347,12.18674574,82.26,82.205,0.51574081]
[1773012198549,12.15820253,82.249,82.205,0.51574081]
[1773012199054,12.15729748,82.256,82.208,0.51574081]
[1773012199238,30.38821891,82.269,82.208,0.51574081]
[1773012199545,12.15662668,82.26,82.208,0.51574081]
[1773012199921,12.28674574,82.27,82.208,0.51574081]
[1773012200123,0.1,82.27,82.213,0.51574081]
[1773012200352,12.15528047,82.269,82.213,0.51574081]
[1773012200730,0.1,82.27,82.213,0.51574081]
[1773012200926,12.28674574,82.25,82.207,0.28432314]
[1773012201247,12.18674574,82.24,82.206,12.16456219]
[1773012201450,42.55370885,82.249,82.206,12.16456219]
[1773012201757,42.55370885,82.249,82.201,12.68091909]
[1773012201758,12.18674574,82.24,82.201,12.68091909]
[1773012202259,12.18674574,82.24,82.201,43.0941744]
[1773012202440,42.55370885,82.249,82.201,43.0941744]
[1773012203139,42.55370885,82.249,82.202,0.51574081]
[1773012204154,12.18674574,82.24,82.202,0.51574081]
[1773012204355,12.18674574,82.23,82.186,0.51574081]
[1773012204537,12.18674574,82.22,82.181,42.58891957]
[1773012204741,12.18674574,82.21,82.177,0.51574081]
[1773012205043,12.18674574,82.22,82.178,0.51574081]
[1773012205242,0.28432314,82.239,82.178,0.51574081]
[1773012205243,12.15982878,82.238,82.178,0.51574081]
[1773012205627,12.15982878,82.238,82.181,0.51574081]
[1773012206929,12.15982878,82.238,82.184,0.51574081]
[1773012207143,12.57106888,82.25,82.187,0.51574081]
[1773012207350,12.15820253,82.249,82.191,0.51574081]
[1773012208845,12.18674574,82.24,82.191,0.51574081]
[1773012209149,12.15968092,82.239,82.193,0.51574081]
[1773012209861,42.55888324,82.239,82.193,0.51574081]
[1773012210028,12.18674574,82.23,82.193,0.51574081]
[1773012210741,42.55888324,82.239,82.193,0.51574081]
[1773012211243,12.18674574,82.22,82.194,12.16633817]
[1773012212355,12.18674574,82.2,82.155,0.51574081]
[1773012212650,12.18674574,82.19,82.146,0.51574081]
[1773012213245,12.18674574,82.19,82.148,0.51574081]
[1773012213246,12.16707831,82.189,82.148,0.51574081]
[1773012214445,12.16707831,82.189,82.149,12.17300271]
[1773012214652,12.18674574,82.18,82.149,12.17300271]
[1773012215345,12.16707831,82.189,82.15,0.51574081]
[1773012215736,42.5847741,82.189,82.145,0.51574081]
[1773012215954,12.16707831,82.189,82.145,0.51574081]
[1773012216256,12.18674574,82.18,82.145,0.51574081]
[1773012216458,12.18674574,82.18,82.146,43.12280627]
[1773012216657,12.16792739,82.184,82.147,0.51574081]
[1773012216957,12.18674574,82.22,82.15,0.51574081]
[1773012217140,12.18674574,82.21,82.15,0.51574081]
[1773012218257,12.16411828,82.209,82.153,0.51574081]
[1773012218447,12.44696194,82.219,82.153,0.51574081]
[1773012218762,54.94027739,82.316,82.167,0.51574081]
[1773012218763,42.5858951,82.24,82.167,0.51574081]
[1773012218950,12.18674574,82.23,82.171,0.51574081]
[1773012219541,42.57397951,82.24,82.171,0.51574081]
[1773012219942,0.28432314,82.239,82.171,0.51574081]
[1773012220347,42.55940075,82.238,82.177,0.51574081]
[1773012221663,0.28432314,82.229,82.177,0.51574081]
[1773012222467,42.5640589,82.229,82.179,0.51574081]
[1773012223246,12.17483015,82.22,82.179,0.51574081]
[1773012223560,42.5640589,82.229,82.179,0.51574081]
[1773012225563,12.17483015,82.24,82.181,0.51574081]
[1773012225768,12.17483015,82.24,82.182,0.51574081]
[1773012226067,0.1,82.25,82.182,0.51574081]
[1773012226244,0.1,82.25,82.18,42.58943781]
[1773012226245,0.1,82.25,82.201,0.51574081]
[1773012227143,0.1,82.25,82.211,0.51574081]
[1773012227648,0.1,82.25,82.213,0.51574081]
[1773012227859,0.1,82.25,82.216,0.51574081]
[1773012228052,0.1,82.25,82.217,0.51574081]
[1773012228658,0.1,82.25,82.218,4.82477569]
[1773012228978,0.1,82.25,82.217,0.51574081]
[1773012228979,0.09027081,82.312,82.23,4.82477569]
[1773012229151,0.37459395,82.309,82.243,0.46588512]
[1773012229353,0.09027081,82.309,82.25,0.46588512]
[1773012229652,12.14874928,82.313,82.256,0.46588512]
[1773012230169,0.09002096,82.312,82.256,0.46588512]
[1773012230369,0.09002096,82.299,82.256,0.46588512]
[1773012230951,12.14874928,82.313,82.256,0.46588512]
[1773012231151,12.14874928,82.313,82.252,0.28432314]
[1773012231152,0.08977398,82.312,82.26,0.46588512]
[1773012231761,0.08977398,82.312,82.263,0.46588512]
[1773012232166,12.14874928,82.313,82.263,0.46588512]
[1773012232470,42.52062249,82.313,82.263,0.46588512]
[1773012233069,0.08928851,82.312,82.263,0.46588512]
[1773012233257,12.17483015,82.31,82.263,0.46588512]
[1773012233673,0.08904994,82.299,82.254,0.46588512]
[1773012233974,0.08904994,82.289,82.244,0.46588512]
[1773012234572,42.66485045,82.309,82.223,0.46588512]
[1773012234573,0.08881411,82.269,82.223,0.46588512]
[1773012234774,0.08881411,82.259,82.223,0.46588512]
[1773012235175,0.08881411,82.288,82.223,0.46588512]
[1773012235380,0.08881411,82.279,82.224,0.46588512]
[1773012235759,12.15376949,82.279,82.227,0.46588512]
[1773012236777,0.08835056,82.269,82.227,0.46588512]
[1773012237974,0.28432314,82.289,82.229,0.46588512]
[1773012238176,0.08812277,82.279,82.229,0.46588512]
[1773012238375,0.08812277,82.269,82.229,0.46588512]
[1773012240377,12.24336958,82.269,82.23,12.16101179]
[1773012240555,12.24336958,82.269,82.23,12.62689691]
[1773012240761,12.15524681,82.269,82.231,0.46588512]
[1773012241277,0.08745497,82.268,82.231,0.46588512]
[1773012241475,0.08745497,82.268,82.23,12.16101179]
[1773012241659,0.08745497,82.268,82.231,0.46588512]
[1773012242080,12.1539172,82.278,82.231,0.46588512]
[1773012242413,42.61509319,82.299,82.235,0.46588512]
[1773012242875,12.17483015,82.29,82.235,0.46588512]
[1773012243583,0.08680992,82.298,82.235,0.46588512]
[1773012244369,12.17483015,82.29,82.238,0.49323671]
[1773012244577,30.37703981,82.299,82.226,0.49323671]
[1773012244578,12.17483015,82.27,82.226,0.49323671]
[1773012244780,0.08639214,82.279,82.215,30.40789349]
[1773012244781,0.08639214,82.279,82.22,0.49323671]
[1773012244980,0.08639214,82.279,82.221,0.49323671]
[1773012245868,12.24016163,82.279,82.224,0.49323671]
[1773012246167,0.08618684,82.269,82.224,0.49323671]
[1773012247177,12.17483015,82.27,82.224,0.49323671]
[1773012247486,42.6239765,82.279,82.224,0.49323671]
[1773012248870,42.6239765,82.279,82.223,0.28432314]
[1773012248871,12.15376949,82.279,82.227,0.50528704]
[1773012249067,12.15376949,82.279,82.23,0.50528704]
[1773012249991,0.08519519,82.299,82.24,0.50528704]
[1773012250563,30.37556162,82.304,82.249,0.50528704]
[1773012251095,0.08500364,82.289,82.252,0.50528704]
[1773012251271,0.08500364,82.279,82.25,12.15805471]
[1773012252504,12.23877313,82.279,82.243,12.15908952]
[1773012252994,12.17483015,82.27,82.243,12.15908952]
[1773012253786,12.25927224,82.27,82.243,12.15908952]
[1773012254103,0.08444209,82.249,82.21,0.50528704]
[1773012254382,12.17483015,82.25,82.211,0.50528704]
[1773012254692,12.15747232,82.254,82.211,0.50528704]
[1773012254874,12.15689944,82.258,82.212,0.50528704]
[1773012257593,12.15689944,82.258,82.215,0.50528704]
[1773012258471,0.083723,82.257,82.215,0.50528704]
[1773012258683,12.17483015,82.25,82.215,0.50528704]
[1773012259382,0.083723,82.257,82.215,0.50528704]
[1773012259781,0.083723,82.257,82.216,42.57078913]
[1773012259994,0.083723,82.257,82.217,0.50528704]
[1773012260190,12.17483015,82.25,82.217,0.50528704]
[1773012260374,0.08337572,82.249,82.217,0.50528704]
[1773012260573,0.08337572,82.249,82.216,42.57078913]
[1773012261293,0.08337572,82.249,82.216,12.16308261]
[1773012261593,12.17483015,82.25,82.217,0.50528704]
[1773012262292,12.15820253,82.249,82.219,0.50528704]
[1773012262690,0.08286963,82.239,82.21,12.16397031]
[1773012263072,12.17483015,82.24,82.21,12.16397031]
[1773012263073,0.08286963,82.247,82.211,0.50528704]
[1773012263272,12.15820253,82.249,82.211,0.50528704]
[1773012263474,12.25769978,82.25,82.211,0.50528704]
[1773012263689,0.08270479,82.219,82.184,0.50528704]
[1773012263912,103.33972319,82.253,82.189,0.50528704]
[1773012263913,12.17483015,82.23,82.189,0.50528704]
[1773012264195,12.17483015,82.24,82.189,0.50528704]
[1773012264495,12.15968092,82.239,82.191,0.50528704]
[1773012264695,12.15820253,82.249,82.199,4.82477569]
[1773012264880,12.15820253,82.249,82.194,0.28432314]
[1773012264881,12.15820253,82.249,82.2,0.50528704]
[1773012268297,12.15820253,82.249,82.203,0.50528704]
[1773012268680,12.17483015,82.26,82.203,0.50528704]
[1773012269281,0.08190857,82.249,82.203,0.50528704]
[1773012271412,0.08190857,82.249,82.201,103.40506805]
[1773012271413,0.08160273,82.248,82.206,0.50528704]
[1773012271701,12.17483015,82.24,82.206,0.50528704]
[1773012272496,0.08145245,82.241,82.206,0.50528704]
[1773012272694,12.17483015,82.24,82.206,0.50528704]
[1773012273887,0.08101186,82.238,82.207,12.16441422]
[1773012274781,0.08101186,82.238,82.208,0.48319393]
[1773012277985,0.08101186,82.238,82.185,60.83827964]
[1773012277986,4.54489523,82.22,82.17,0.48319393]
[1773012278192,4.54489523,82.23,82.17,0.48319393]
[1773012278391,4.62534291,82.24,82.179,0.48319393]
[1773012278606,0.08031066,82.239,82.18,0.48319393]
[1773012278785,4.54489523,82.21,82.18,0.48319393]
[1773012278986,0.08031066,82.209,82.18,0.48319393]
[1773012279601,4.5473585,82.22,82.18,0.48319393]
[1773012279989,16.70992186,82.22,82.181,42.58891957]
[1773012280302,0.08017521,82.234,82.182,0.48319393]
[1773012280303,12.16158246,82.227,82.182,0.48319393]
[1773012282111,16.70848947,82.23,82.186,0.48319393]
[1773012283807,4.5473585,82.24,82.186,0.48319393]
[1773012284611,12.15968092,82.239,82.189,0.48319393]
[1773012285114,4.5473585,82.23,82.189,0.48319393]
[1773012287429,4.5473585,82.23,82.19,42.58425598]
[1773012287613,4.5473585,82.23,82.191,0.48319393]
[1773012288999,4.5473585,82.23,82.192,42.58321977]
[1773012289320,4.5473585,82.23,82.193,0.48319393]
[1773012289616,0.07890344,82.229,82.193,0.48319393]
[1773012289910,12.16115968,82.229,82.193,0.48319393]
[1773012290313,4.5473585,82.23,82.193,0.48319393]
[1773012291020,12.16115968,82.229,82.193,0.48319393]
[1773012291318,12.16115968,82.229,82.195,0.48319393]
[1773012291615,12.23994383,82.229,82.195,0.48319393]
[1773012292517,12.23982592,82.229,82.195,0.48319393]
[1773012293705,12.23982592,82.229,82.197,0.48319393]
[1773012294021,12.16038477,82.235,82.197,0.48319393]
[1773012294228,4.5473585,82.25,82.198,0.48319393]
[1773012294400,4.62579296,82.25,82.198,0.48319393]
[1773012294597,4.5473585,82.24,82.198,0.48319393]
[1773012295823,4.5473585,82.24,82.2,0.48319393]
[1773012296911,16.70696519,82.24,82.202,0.48319393]
[1773012298911,16.7848431,82.24,82.204,0.48319393]
[1773012299427,4.5473585,82.24,82.204,0.48319393]
[1773012300428,4.5473585,82.24,82.203,42.57752149]
[1773012300429,0.07777041,82.229,82.203,42.57752149]
[1773012300625,12.15968092,82.239,82.204,0.48319393]
[1773012300626,0.07766414,82.239,82.204,0.48319393]
[1773012300812,12.15905723,82.244,82.204,0.48319393]
[1773012301604,12.15905723,82.244,82.178,104.9]
[1773012301605,4.62491759,82.22,82.189,0.48319393]
[1773012301935,4.62491759,82.23,82.189,0.48319393]
[1773012302817,16.78600517,82.23,82.191,0.47642051]
[1773012303034,12.15746346,82.254,82.199,0.47642051]
[1773012303212,4.5473585,82.25,82.199,0.47642051]
[1773012303408,12.15746346,82.254,82.199,0.47642051]
[1773012304030,4.5473585,82.25,82.199,0.47642051]
[1773012304537,0.07725113,82.249,82.199,0.47642051]
[1773012304918,0.07725113,82.249,82.204,0.47642051]
[1773012305234,0.07725113,82.249,82.205,0.47642051]
[1773012306432,4.5473585,82.25,82.205,0.47642051]
[1773012307133,12.23505931,82.249,82.208,0.46574081]
[1773012307429,0.07685678,82.248,82.208,0.46574081]
[1773012308935,0.07685678,82.248,82.21,0.46574081]
[1773012311039,0.14216157,82.272,82.212,0.46574081]
[1773012311040,0.07648023,82.259,82.212,0.46574081]
[1773012311238,0.14216157,82.272,82.213,0.46574081]
[1773012311239,3.5,82.272,82.213,0.46574081]
[1773012311438,64.45497086,82.29,82.211,103.39249003]
[1773012311439,0.07648023,82.297,82.225,3.97815716]
[1773012311643,1.21551464,82.293,82.243,3.69383402]
[1773012311838,12.1496349,82.307,82.253,0.46574081]
[1773012312347,0.07638878,82.319,82.26,0.46574081]
[1773012312530,0.07638878,82.319,82.263,3.69383402]
[1773012312721,12.1465358,82.328,82.273,0.46574081]
[1773012312922,0.07629838,82.319,82.273,0.46574081]
[1773012313132,0.07629838,82.319,82.275,0.28432314]
[1773012313418,0.07629838,82.319,82.276,0.46574081]
[1773012314052,0.07629838,82.319,82.274,12.1545081]
[1773012314220,0.07620902,82.299,82.269,12.15520965]
[1773012314840,0.07612068,82.279,82.229,0.46574081]
[1773012315019,4.62347918,82.27,82.231,0.46574081]
[1773012315219,0.07612068,82.268,82.233,0.46574081]
[1773012316443,12.15524681,82.269,82.233,0.46574081]
[1773012317222,12.16319677,82.27,82.235,0.46574081]
[1773012317420,12.16319677,82.28,82.235,0.46574081]
[1773012317619,0.07586172,82.279,82.235,0.46574081]
[1773012317822,0.07586172,82.279,82.215,60.8160294]
[1773012317823,0.07586172,82.254,82.226,0.46574081]
[1773012318025,12.16319677,82.26,82.227,0.46574081]
[1773012319233,12.16319677,82.26,82.228,12.16130758]
[1773012319439,12.15569007,82.266,82.229,0.46574081]
[1773012320146,0.075694,82.275,82.229,0.46574081]
[1773012320627,12.16319677,82.27,82.229,0.46574081]
[1773012321338,12.15515728,82.27,82.231,0.46574081]
[1773012323649,0.075694,82.275,82.233,0.46574081]
[1773012323856,12.16319677,82.28,82.233,0.46574081]
[1773012324029,0.07536996,82.279,82.234,0.46574081]
[1773012324654,0.07529126,82.289,82.234,0.46574081]
[1773012324863,0.07529126,82.289,82.232,103.36608618]
[1773012324864,12.22610718,82.299,82.24,0.46574081]
[1773012325439,0.07529126,82.298,82.24,0.46574081]
[1773012325639,0.07529126,82.298,82.243,0.46574081]
[1773012327850,0.07506055,82.289,82.246,0.46574081]
[1773012328054,0.07506055,82.269,82.24,0.14216157]
[1773012328355,12.16319677,82.27,82.221,4.82477569]
[1773012328356,0.07506055,82.259,82.234,12.1602806]
[1773012330040,12.23178504,82.259,82.23,12.16101179]
[1773012330751,0.0748377,82.277,82.231,0.46574081]
[1773012330945,30.45960035,82.279,82.231,0.46574081]
[1773012331247,0.0748377,82.278,82.231,0.46574081]
[1773012331949,12.15421265,82.276,82.233,0.46574081]
[1773012333042,12.15421265,82.276,82.235,0.46574081]
[1773012333238,12.15365997,82.28,82.236,0.46574081]
[1773012333445,12.15365997,82.28,82.235,0.28432314]
[1773012333446,0.07462244,82.302,82.248,0.46574081]
[1773012333650,0.07462244,82.302,82.251,0.46574081]
[1773012335853,0.07441451,82.299,82.254,0.46574081]
[1773012337160,0.07434679,82.289,82.252,42.55215678]
[1773012337374,0.07434679,82.289,82.252,0.46574081]
[1773012337682,0.07434679,82.279,82.252,12.62349989]
[1773012337845,12.22811628,82.279,82.252,12.62349989]
[1773012338889,0.07421367,82.278,82.234,0.28432314]
[1773012339042,12.15376949,82.279,82.228,0.46574081]
[1773012339043,0.07421367,82.259,82.228,0.46574081]
[1773012339252,0.07421367,82.259,82.22,0.46574081]
[1773012339568,12.16319677,82.26,82.22,0.46574081]
[1773012339863,0.07414825,82.277,82.22,0.46574081]
[1773012340643,0.07408359,82.249,82.22,0.46574081]
[1773012340861,0.07408359,82.249,82.206,0.46574081]
[1773012341047,0.07408359,82.249,82.209,0.46574081]
[1773012341048,0.07408359,82.248,82.209,0.46574081]
[1773012342563,12.15764608,82.253,82.209,0.46574081]
[1773012343064,12.15524681,82.269,82.212,0.46574081]
[1773012343261,12.17179795,82.26,82.212,0.46574081]
[1773012343462,0.07395648,82.268,82.212,0.46574081]